bitfinex-derivatives/quotes_BTCF0:USTF0_20260131
["timestamp","ask_amount","ask_price","bid_price","bid_amount"]
[1769845181279,0.2256435,83501.0,83479.0,0.29411599]
[1769845181480,0.2256435,83501.0,83480.0,0.10796]
[1769845181683,0.10796,83503.0,83481.0,0.28211799]
[1769845181991,0.22592553,83508.0,83481.0,0.28211799]
[1769845182189,0.011995,83502.0,83481.0,0.28211799]
[1769845184392,0.23917088,83506.0,83481.0,0.28211799]
[1769845184592,0.15658414,83505.0,83481.0,0.28211799]
[1769845184791,0.15658414,83505.0,83480.0,0.10796]
[1769845184792,0.23917088,83506.0,83482.0,0.29411599]
[1769845184990,0.15658414,83505.0,83482.0,0.29411599]
[1769845185191,0.23917088,83506.0,83482.0,0.29411599]
[1769845185491,0.15658414,83505.0,83482.0,0.29411599]
[1769845185791,0.15658414,83504.0,83482.0,0.29411599]
[1769845185982,0.23917088,83506.0,83482.0,0.29411599]
[1769845186183,0.15661789,83505.0,83482.0,0.29411599]
[1769845186388,0.15661789,83504.0,83482.0,0.29411599]
[1769845186690,0.23917088,83506.0,83482.0,0.29411599]
[1769845186890,0.15667343,83505.0,83482.0,0.28211799]
[1769845187085,0.10796,83510.0,83485.0,0.28211799]
[1769845187679,0.24544106,83509.0,83483.0,0.011998]
[1769845187988,0.24544106,83509.0,83483.0,0.29411599]
[1769845188884,0.23344706,83509.0,83483.0,0.29411599]
[1769845189292,0.24544106,83508.0,83483.0,0.29411599]
[1769845191091,0.011994,83512.0,83483.0,0.29411599]
[1769845191794,0.25288358,83512.0,83483.0,0.29411599]
[1769845192392,0.24088958,83506.0,83484.0,0.40288]
[1769845192595,0.24088958,83506.0,83484.0,0.5108]
[1769845193389,0.24612196,83504.0,83484.0,0.5108]
[1769845194890,0.24612196,83501.0,83478.0,0.28211799]
[1769845195193,0.24612196,83501.0,83479.0,0.4238]
[1769845195797,0.25246108,83500.0,83479.0,0.70591799]
[1769845196500,0.25246108,83500.0,83480.0,0.28211799]
[1769845197798,0.25246108,83500.0,83479.0,0.4238]
[1769845198892,0.25246108,83500.0,83479.0,0.10792]
[1769845199093,0.25241691,83498.0,83479.0,0.10792]
[1769845200898,0.25241691,83498.0,83480.0,0.28211799]
[1769845201303,0.26593886,83504.0,83480.0,0.28211799]
[1769845201498,0.011995,83504.0,83480.0,0.28211799]
[1769845201698,0.011995,83506.0,83480.0,0.29411599]
[1769845202098,0.011994,83509.0,83480.0,0.29411599]
[1769845202297,0.26668635,83509.0,83480.0,0.29411599]
[1769845205006,0.26668635,83509.0,83480.0,0.28211799]
[1769845205210,0.011995,83504.0,83480.0,0.28211799]
[1769845205711,0.26944558,83504.0,83480.0,0.28211799]
[1769845207817,0.011995,83504.0,83480.0,0.28211799]
[1769845211326,0.011994,83507.0,83482.0,0.27324003]
[1769845211526,0.14938477,83506.0,83482.0,0.27324003]
[1769845211826,0.14938477,83505.0,83482.0,0.27324003]
[1769845212029,0.27669744,83507.0,83482.0,0.27324003]
[1769845212326,0.011995,83505.0,83482.0,0.27324003]
[1769845215118,0.14718042,83504.0,83482.0,0.27324003]
[1769845215429,0.011995,83505.0,83482.0,0.27324003]
[1769845215631,0.14719176,83504.0,83482.0,0.27324003]
[1769845215929,0.011995,83502.0,83484.0,0.27324003]
[1769845218633,0.28903972,83502.0,83484.0,0.27324003]
[1769845219536,0.20388557,83500.0,83484.0,0.27324003]
[1769845224842,0.28283741,83493.0,83443.0,0.27324003]
[1769845225044,0.011996,83498.0,83430.0,0.71916965]
[1769845225045,0.28283741,83471.0,83441.0,0.012004]
[1769845225337,0.28283741,83471.0,83433.0,0.10792]
[1769845225338,0.20388557,83453.0,83433.0,0.119925]
[1769845225532,0.20388557,83453.0,83433.0,0.10792]
[1769845226839,0.012002,83456.0,83433.0,0.10792]
[1769845227240,0.012002,83456.0,83434.0,0.27324003]
[1769845229534,0.012002,83453.0,83434.0,0.27324003]
[1769845231243,0.012002,83457.0,83434.0,0.27324003]
[1769845231443,0.10792,83458.0,83434.0,0.27324003]
[1769845231643,0.119921,83458.0,83434.0,0.28524503]
[1769845231845,0.119921,83458.0,83434.0,0.27324003]
[1769845234747,0.012001,83458.0,83434.0,0.27324003]
[1769845235042,0.10796,83461.0,83436.0,0.27324003]
[1769845235347,0.20388557,83470.0,83436.0,0.27324003]
[1769845235547,0.10796,83469.0,83436.0,0.27324003]
[1769845235941,0.012,83466.0,83439.0,0.27324003]
[1769845236142,0.012,83466.0,83441.0,0.27324003]
[1769845237136,0.10796,83469.0,83443.0,0.27088417]
[1769845237337,0.10796,83469.0,83445.0,0.27088417]
[1769845238152,0.012,83468.0,83445.0,0.27088417]
[1769845238549,0.2852001,83468.0,83445.0,0.27088417]
[1769845239044,0.2852001,83468.0,83397.0,0.35767813]
[1769845239045,0.2732001,83455.0,83435.0,0.27088417]
[1769845241344,0.2852021,83455.0,83435.0,0.27088417]
[1769845242156,0.10796,83458.0,83440.0,0.2928002]
[1769845244651,0.119961,83458.0,83440.0,0.2928002]
[1769845245655,0.012002,83456.0,83440.0,0.2928002]
[1769845245850,0.28387729,83456.0,83435.0,0.2928002]
[1769845246049,0.27187529,83454.0,83434.0,0.10796]
[1769845246344,0.20388557,83444.0,83425.0,0.2928002]
[1769845246550,0.27187529,83443.0,83419.0,0.3048072]
[1769845247362,0.27187529,83441.0,83419.0,0.2928002]
[1769845247558,0.10796,83445.0,83430.0,0.2928002]
[1769845247854,0.10796,83447.0,83436.0,0.2928002]
[1769845248056,0.012,83465.0,83441.0,0.2928002]
[1769845248255,0.012001,83462.0,83441.0,0.2928002]
[1769845249357,0.012001,83462.0,83450.0,0.20388557]
[1769845249556,0.012001,83462.0,83450.0,0.2928002]
[1769845250553,0.10796,83469.0,83450.0,0.2928002]
[1769845253665,0.27187529,83468.0,83440.0,0.012004]
[1769845253853,0.27187529,83468.0,83440.0,0.3048042]
[1769845254753,0.27187529,83455.0,83417.0,0.0666863]
[1769845254956,0.27187529,83453.0,83422.0,0.2928002]
[1769845255256,0.27187529,83451.0,83424.0,0.2928002]
[1769845255457,0.119962,83454.0,83424.0,0.2928002]
[1769845255458,0.42032791,83450.0,83424.0,0.2928002]
[1769845255657,0.27187529,83450.0,83424.0,0.2928002]
[1769845257170,0.119962,83454.0,83424.0,0.2928002]
[1769845260369,0.012002,83454.0,83424.0,0.2928002]
[1769845260672,0.27187529,83461.0,83426.0,0.2928002]
[1769845260872,0.108,83464.0,83435.0,0.2928002]
[1769845260873,0.012001,83463.0,83435.0,0.2928002]
[1769845261075,0.108,83464.0,83439.0,0.2928002]
[1769845261367,0.012002,83456.0,83439.0,0.2928002]
[1769845262176,0.28387729,83451.0,83436.0,0.108]
[1769845262474,0.012003,83447.0,83436.0,0.108]
[1769845262866,0.28387829,83447.0,83436.0,0.108]
[1769845263767,0.28387829,83447.0,83436.0,0.10782582]
[1769845264273,0.28387829,83447.0,83428.0,0.2928002]
[1769845265576,0.108,83447.0,83428.0,0.2928002]
[1769845268579,0.012003,83446.0,83428.0,0.2928002]
[1769845276789,0.012003,83446.0,83430.0,0.20410262]
[1769845276984,0.012003,83446.0,83431.0,0.29952501]
[1769845283595,0.27324666,83443.0,83423.0,0.012006]
[1769845283890,0.27324666,83443.0,83423.0,0.31153101]
[1769845284191,0.012003,83444.0,83423.0,0.31153101]
[1769845288891,0.012003,83448.0,83423.0,0.31153101]
[1769845289792,0.012003,83448.0,83424.0,0.108]
[1769845289994,0.012003,83448.0,83425.0,0.29952501]
[1769845293597,0.012003,83445.0,83425.0,0.29952501]
[1769845294490,0.28524966,83445.0,83425.0,0.29952501]
[1769845296894,0.28524966,83445.0,83424.0,0.108]
[1769845297288,0.28524966,83445.0,83424.0,0.38301052]
[1769845297488,0.28524966,83445.0,83425.0,0.27501052]
[1769845298898,0.27324666,83445.0,83425.0,0.27501052]
[1769845299200,0.28524966,83445.0,83425.0,0.27501052]
[1769845299400,0.39780849,83444.0,83425.0,0.27501052]
[1769845299696,0.012004,83443.0,83425.0,0.27501052]
[1769845300197,0.30181249,83443.0,83425.0,0.27501052]
[1769845303702,0.28980849,83438.0,83417.0,0.29462408]
[1769845304002,0.012004,83439.0,83418.0,0.108]
[1769845304203,0.012004,83439.0,83419.0,0.29462408]
[1769845307006,0.28980849,83442.0,83419.0,0.29462408]
[1769845307508,0.012004,83441.0,83419.0,0.29462408]
[1769845308512,0.30181249,83441.0,83419.0,0.29462408]
[1769845308811,0.012004,83441.0,83419.0,0.40262408]
[1769845309207,0.012004,83441.0,83420.0,0.29462408]
[1769845312906,0.28980849,83441.0,83420.0,0.29462408]
[1769845314213,0.012005,83436.0,83420.0,0.29462408]
[1769845314414,0.108,83435.0,83420.0,0.29462408]
[1769845322819,0.012004,83442.0,83420.0,0.29462408]
[1769845323010,0.108,83441.0,83420.0,0.29462408]
[1769845323909,0.108,83440.0,83420.0,0.29462408]
[1769845325912,0.012004,83442.0,83420.0,0.29462408]
[1769845326111,0.108,83441.0,83420.0,0.29462408]
[1769845327326,0.012004,83442.0,83420.0,0.29462408]
[1769845327520,0.012003,83446.0,83420.0,0.29462408]
[1769845327830,0.012003,83446.0,83422.0,0.27134357]
[1769845327831,0.108,83445.0,83422.0,0.27134357]
[1769845329223,0.108,83445.0,83424.0,0.27134357]
[1769845334815,0.108,83445.0,83426.0,0.27134357]
[1769845336726,0.27760521,83439.0,83419.0,0.108]
[1769845337419,0.27760521,83439.0,83420.0,0.27134357]
[1769845340328,0.27760521,83439.0,83419.0,0.108]
[1769845341126,0.27760521,83439.0,83419.0,0.37934357]
[1769845341324,0.27760521,83439.0,83420.0,0.27134357]
[1769845342528,0.27760521,83439.0,83420.0,0.28335057]
[1769845342839,0.27760521,83471.0,83439.0,0.27134357]
[1769845343031,0.27760521,83471.0,83443.0,0.27134357]
[1769845343229,0.012,83465.0,83443.0,0.27134357]
[1769845343435,0.28960521,83465.0,83443.0,0.27134357]
[1769845343832,0.27760521,83461.0,83443.0,0.27134357]
[1769845344033,0.108,83460.0,83443.0,0.27134357]
[1769845344339,0.108,83460.0,83437.0,0.108]
[1769845344340,0.27760521,83456.0,83437.0,0.108]
[1769845344530,0.27760521,83456.0,83431.0,0.27134357]
[1769845344730,0.27760521,83456.0,83431.0,0.33803195]
[1769845345240,0.27760521,83451.0,83427.0,0.108]
[1769845345420,0.4814,83463.0,83427.0,0.17281005]
[1769845345421,0.27760521,83449.0,83427.0,0.17281005]
[1769845345622,0.27760521,83447.0,83427.0,0.17281005]
[1769845345826,0.38560521,83446.0,83427.0,0.17281005]
[1769845346026,0.108,83445.0,83427.0,0.17281005]
[1769845348434,0.108,83445.0,83427.0,0.44415362]
[1769845350439,0.012001,83461.0,83430.0,0.67968331]
[1769845350635,0.012,83465.0,83450.0,0.47551344]
[1769845350836,0.113,83472.0,83443.0,0.108]
[1769845350837,0.28960621,83462.0,83443.0,0.108]
[1769845351036,0.27760521,83460.0,83443.0,0.108]
[1769845351938,0.012001,83459.0,83443.0,0.108]
[1769845352142,0.28960621,83459.0,83443.0,0.108]
[1769845358449,0.012002,83457.0,83443.0,0.108]
[1769845358749,0.27760521,83459.0,83443.0,0.108]
[1769845359051,0.108,83470.0,83452.0,0.27652394]
[1769845359248,0.108,83471.0,83452.0,0.27652394]
[1769845359745,0.108,83471.0,83454.0,0.27372385]
[1769845360349,0.109,83471.0,83454.0,0.27372385]
[1769845360844,0.001,83471.0,83454.0,0.27372385]
[1769845361348,0.39872002,83485.0,83464.0,0.27372385]
[1769845361544,0.108,83485.0,83470.0,0.27372385]
[1769845362049,0.108,83485.0,83471.0,0.011999]
[1769845362050,0.10440937,83485.0,83471.0,0.011999]
[1769845362243,0.108,83494.0,83474.0,0.27372385]
[1769845362438,0.108,83494.0,83465.0,0.5542]
[1769845362439,0.108,83494.0,83478.0,0.27372385]
[1769845362834,0.108,83494.0,83480.0,0.27372385]
[1769845363549,0.109,83494.0,83480.0,0.27372385]
[1769845364142,0.001,83494.0,83480.0,0.27372385]
[1769845365540,0.20416987,83490.0,83479.0,0.011998]
[1769845366942,0.011995,83504.0,83479.0,0.011998]
[1769845367144,0.20416987,83490.0,83479.0,0.011998]
[1769845367647,0.20416987,83490.0,83480.0,0.27372385]
[1769845369854,0.30271502,83504.0,83480.0,0.27372385]
[1769845370054,0.20416987,83490.0,83480.0,0.27372385]
[1769845371157,0.011995,83504.0,83480.0,0.27372385]
[1769845371358,0.20416987,83490.0,83480.0,0.27372385]
[1769845372263,0.29072002,83501.0,83480.0,0.27372385]
[1769845372451,0.20416987,83490.0,83480.0,0.27372385]
[1769845373758,0.20416987,83490.0,83479.0,0.011998]
[1769845374655,0.29072002,83489.0,83465.0,0.5542]
[1769845374860,0.20416987,83475.0,83466.0,0.10796]
[1769845375054,0.20416987,83475.0,83467.0,0.012]
[1769845375651,0.20416987,83475.0,83468.0,0.10796]
[1769845376253,0.29072002,83489.0,83472.0,0.011999]
[1769845376454,0.20416987,83482.0,83468.0,0.10796]
[1769845378049,0.20416987,83482.0,83472.0,0.011999]
[1769845379856,0.29072002,83489.0,83472.0,0.011999]
[1769845381264,0.39868002,83494.0,83475.0,0.27372385]
[1769845381467,0.39868002,83494.0,83476.0,0.28572285]
[1769845381768,0.10796,83504.0,83482.0,0.27372385]
[1769845382059,0.10796,83513.0,83492.0,0.27372385]
[1769845382264,0.29072002,83505.0,83483.0,0.12782061]
[1769845382458,0.29172002,83494.0,83482.0,0.10796]
[1769845382666,0.001,83494.0,83482.0,0.10796]
[1769845382870,0.001,83494.0,83482.0,0.38168385]
[1769845383363,0.001,83494.0,83483.0,0.27372385]
[1769845383958,0.001,83494.0,83486.0,0.011997]
[1769845384259,0.29072002,83501.0,83483.0,0.27372385]
[1769845384463,0.29072002,83501.0,83483.0,0.011998]
[1769845384661,0.29072002,83501.0,83482.0,0.10796]
[1769845384868,0.29072002,83499.0,83482.0,0.10796]
[1769845385057,0.29072002,83497.0,83482.0,0.10796]
[1769845390867,0.29072002,83497.0,83487.0,0.20416987]
[1769845391376,0.29072002,83497.0,83480.0,0.20416987]
[1769845391669,0.29312697,83495.0,83474.0,0.23975117]
[1769845391968,0.29312697,83491.0,83480.0,0.20416987]
[1769845392170,0.29312697,83491.0,83470.0,0.012]
[1769845392474,0.29312697,83491.0,83480.0,0.20416987]
[1769845392666,0.29312697,83491.0,83468.0,0.23975117]
[1769845392862,0.29312697,83491.0,83470.0,0.20416987]
[1769845393067,0.29312697,83489.0,83480.0,0.20416987]
[1769845393265,0.29312697,83487.0,83480.0,0.20416987]
[1769845393959,0.29312697,83487.0,83477.0,0.20416987]
[1769845397769,0.10792,83488.0,83477.0,0.20416987]
[1769845397971,0.10792,83489.0,83477.0,0.20416987]
[1769845398769,0.10792,83489.0,83478.0,0.2849574]
[1769845398969,0.10792,83494.0,83478.0,0.2729594]
[1769845399275,0.10792,83494.0,83484.0,0.20416987]
[1769845400469,0.10792,83494.0,83485.0,0.2729594]
[1769845401073,0.5922,83504.0,83485.0,0.2729594]
[1769845401667,0.604195,83504.0,83485.0,0.2729594]
[1769845403176,0.89732197,83504.0,83485.0,0.2729594]
[1769845403377,0.011995,83501.0,83485.0,0.2729594]
[1769845403580,0.30512197,83501.0,83477.0,0.011999]
[1769845404175,0.29312697,83496.0,83476.0,0.10792]
[1769845404771,0.5922,83504.0,83476.0,0.10792]
[1769845404772,0.29312697,83493.0,83476.0,0.10792]
[1769845404974,0.29312697,83493.0,83476.0,0.3808794]
[1769845407283,0.10792,83494.0,83476.0,0.3808794]
[1769845408478,0.40104697,83494.0,83476.0,0.3808794]
[1769845409479,0.29312697,83493.0,83476.0,0.3808794]
[1769845410683,0.10792,83494.0,83477.0,0.2729594]
[1769845410887,0.48428,83504.0,83481.0,0.2729594]
[1769845411082,0.48428,83504.0,83486.0,0.2729594]
[1769845411788,0.10792,83506.0,83488.0,0.2729594]
[1769845411978,0.10792,83506.0,83491.0,0.2729594]
[1769845414179,0.30511997,83517.0,83491.0,0.2729594]
[1769845414375,0.30511997,83515.0,83491.0,0.2729594]
[1769845414980,0.29312697,83515.0,83491.0,0.2849554]
[1769845415178,0.29312697,83520.0,83491.0,0.2849554]
[1769845415987,0.29312697,83516.0,83491.0,0.2729594]
[1769845416386,0.29312697,83516.0,83488.0,0.011997]
[1769845416991,0.29238673,83511.0,83488.0,0.011997]
[1769845418894,0.29238673,83509.0,83487.0,0.10792]
[1769845426197,0.29238673,83509.0,83487.0,0.40179627]
[1769845426595,0.011994,83507.0,83485.0,0.23975117]
[1769845426799,0.29882623,83506.0,83485.0,0.53362744]
[1769845427100,0.29882623,83504.0,83486.0,0.10792]
[1769845427394,0.29882623,83502.0,83486.0,0.10792]
[1769845427602,0.29882623,83497.0,83477.0,0.10792]
[1769845427899,0.29882623,83494.0,83470.0,0.09409604]
[1769845428701,0.29882623,83492.0,83468.0,0.30587627]
[1769845429400,0.10792,83501.0,83468.0,0.29387627]
[1769845429401,0.29882623,83489.0,83468.0,0.29387627]
[1769845434309,0.011996,83493.0,83468.0,0.29387627]
[1769845434503,0.29882623,83492.0,83468.0,0.29387627]
[1769845437506,0.011996,83493.0,83468.0,0.29387627]
[1769845438209,0.29882623,83496.0,83466.0,0.25190391]
[1769845438210,0.29882623,83496.0,83470.0,0.29387627]
[1769845439913,0.29882623,83496.0,83472.0,0.29387627]
[1769845441714,0.29882623,83496.0,83474.0,0.29387627]
[1769845444918,0.29882623,83496.0,83476.0,0.29387627]
[1769845447818,0.10792,83501.0,83484.0,0.29112108]
[1769845448121,0.011993,83518.0,83492.0,0.011996]
[1769845448316,0.011993,83516.0,83492.0,0.011996]
[1769845448514,0.10792,83515.0,83492.0,0.011996]
[1769845448709,0.10792,83515.0,83490.0,0.27912308]
[1769845448910,0.10792,83515.0,83494.0,0.27912308]
[1769845449719,0.001,83501.0,83494.0,0.27912308]
[1769845449923,0.27772589,83512.0,83494.0,0.27912308]
[1769845454220,0.27772589,83512.0,83489.0,0.29112008]
[1769845455423,0.10792,83515.0,83489.0,0.29112008]
[1769845455630,0.10792,83515.0,83498.0,0.27912308]
[1769845459026,0.4318,83532.0,83496.0,0.10792]
[1769845459027,1.0482467,83541.0,83504.0,0.27912308]
[1769845459328,0.27472589,83551.0,83524.0,0.27912308]
[1769845459529,0.10792,83550.0,83525.0,0.10792]
[1769845459832,0.10792,83549.0,83525.0,0.10792]
[1769845461330,0.27772589,83548.0,83517.0,0.27912308]
[1769845462037,0.27772589,83548.0,83518.0,0.27912308]
[1769845462537,0.27772589,83548.0,83520.0,0.27912308]
[1769845463534,0.27772589,83548.0,83521.0,0.27912308]
[1769845464237,0.27772589,83548.0,83519.0,0.011993]
[1769845464443,0.27772589,83548.0,83517.0,0.06557538]
[1769845464642,0.27772589,83548.0,83513.0,0.27912308]
[1769845464845,0.27772589,83541.0,83510.0,0.064805]
[1769845465036,0.27772589,83541.0,83505.0,0.10792]
[1769845465438,0.27772589,83541.0,83505.0,0.17514288]
[1769845465943,0.27772589,83536.0,83505.0,0.17514288]
[1769845466144,0.27772589,83534.0,83505.0,0.17514288]
[1769845466336,0.27772589,83534.0,83510.0,0.20362367]
[1769845472842,0.27772589,83534.0,83506.0,0.27912308]
[1769845473046,0.27772589,83534.0,83510.0,0.20362367]
[1769845473841,0.27772589,83534.0,83510.0,0.48274675]
[1769845474644,0.27772589,83534.0,83511.0,0.27912308]
[1769845480456,0.27772589,83534.0,83510.0,0.20362367]
[1769845483348,0.28060901,83529.0,83505.0,0.06722288]
[1769845483544,0.28060901,83529.0,83500.0,0.50271656]
[1769845483745,0.28060901,83529.0,83502.0,0.011995]
[1769845483946,0.28060901,83527.0,83500.0,0.06689043]
[1769845484147,0.28060901,83527.0,83498.0,0.011995]
[1769845484855,0.28060901,83527.0,83498.0,0.07801642]
[1769845485052,0.28060901,83525.0,83498.0,0.07801642]
[1769845485253,0.28060901,83523.0,83498.0,0.011995]
[1769845488059,0.28160901,83523.0,83498.0,0.011995]
[1769845490254,0.28060901,83523.0,83498.0,0.011995]
[1769845490455,0.28160901,83523.0,83498.0,0.011995]
[1769845491062,0.28060901,83523.0,83498.0,0.011995]
[1769845491257,0.28160901,83523.0,83498.0,0.011995]
[1769845494752,0.28160901,83523.0,83500.0,0.20362367]
[1769845496366,0.28060901,83523.0,83500.0,0.20362367]
[1769845499464,0.28160901,83523.0,83500.0,0.20362367]
[1769845500365,0.28060901,83523.0,83500.0,0.20362367]
[1769845502769,0.28060901,83523.0,83501.0,0.29909289]
[1769845504276,0.28060901,83523.0,83500.0,0.20362367]
[1769845504573,0.28060901,83523.0,83496.0,0.29909289]
[1769845504967,0.28060901,83523.0,83500.0,0.20362367]
[1769845505675,0.21583801,83523.0,83500.0,0.20362367]
[1769845506676,0.21683801,83523.0,83500.0,0.20362367]
[1769845510475,0.001,83523.0,83510.0,0.20362367]
[1769845510777,0.27120174,83522.0,83500.0,0.20362367]
[1769845511076,0.27120174,83520.0,83500.0,0.20362367]
[1769845511474,0.27120174,83520.0,83500.0,0.49743219]
[1769845512075,0.27120174,83520.0,83501.0,0.29380852]
[1769845514076,0.27120174,83542.0,83510.0,0.20362367]
[1769845514278,0.10792,83541.0,83530.0,0.49743219]
[1769845514477,0.17441838,83540.0,83534.0,0.01199]
[1769845514671,0.40812,83539.0,83534.0,0.01199]
[1769845515169,0.40812,83539.0,83530.0,0.49743219]
[1769845515170,0.40812,83539.0,83531.0,0.29380852]
[1769845515371,0.60228,83541.0,83531.0,0.29380852]
[1769845521683,0.27120174,83559.0,83538.0,0.29380852]
[1769845521890,0.60424,83558.0,83538.0,0.30579852]
[1769845522182,0.60428,83557.0,83542.0,0.29380852]
[1769845523180,0.27120174,83559.0,83542.0,0.29380852]
[1769845523486,0.20362367,83570.0,83542.0,0.29380852]
[1769845523487,0.6046,83558.0,83542.0,0.29380852]
[1769845523680,0.4968,83557.0,83542.0,0.29380852]
[1769845523881,0.27120174,83564.0,83542.0,0.29380852]
[1769845524080,0.87600174,83563.0,83542.0,0.29380852]
[1769845524884,0.27120174,83562.0,83542.0,0.29380852]
[1769845526486,0.6048,83563.0,83542.0,0.29380852]
[1769845527889,0.27120174,83570.0,83542.0,0.29380852]
[1769845528089,0.10788,83562.0,83542.0,0.29380852]
[1769845528289,0.10788,83561.0,83542.0,0.29380852]
[1769845528490,0.49808,83560.0,83542.0,0.29380852]
[1769845528991,0.49808,83560.0,83546.0,0.29380852]
[1769845533695,0.49808,83560.0,83546.0,0.35880983]
[1769845538695,0.28039302,83559.0,83546.0,0.06500131]
[1769845539001,0.49808,83560.0,83544.0,0.27200258]
[1769845539199,0.49808,83560.0,83544.0,0.33657038]
[1769845540300,0.49808,83560.0,83545.0,0.28465707]
[1769845542298,0.10784,83563.0,83550.0,0.011988]
[1769845542501,0.61028,83563.0,83551.0,0.28465707]
[1769845542995,0.50256,83567.0,83551.0,0.28465707]
[1769845543803,0.77823071,83567.0,83551.0,0.28465707]
[1769845547194,0.27567071,83566.0,83548.0,0.10784]
[1769845548307,0.27567071,83566.0,83544.0,0.0645678]
[1769845548510,0.27567071,83566.0,83541.0,0.011989]
[1769845548800,0.27567071,83566.0,83541.0,0.07732381]
[1769845556115,0.27567071,83566.0,83544.0,0.011989]
[1769845561020,0.27567071,83566.0,83547.0,0.29664607]
[1769845561517,0.27567071,83566.0,83547.0,0.011989]
[1769845561714,0.27567071,83566.0,83541.0,0.30508598]
[1769845562115,0.50788,83565.0,83541.0,0.30508598]
[1769845562315,0.27567071,83564.0,83541.0,0.30508598]
[1769845562515,0.27567071,83564.0,83541.0,0.06533481]
[1769845562716,0.27567071,83564.0,83540.0,0.34891707]
[1769845563223,0.27567071,83564.0,83540.0,0.41374494]
[1769845563915,0.27567071,83564.0,83540.0,0.69840201]
[1769845564325,0.27567071,83564.0,83541.0,0.011989]
[1769845564818,0.27567071,83564.0,83548.0,0.28465707]
[1769845565119,0.10784,83569.0,83554.0,0.28465707]
[1769845565619,0.38351071,83569.0,83554.0,0.28465707]
[1769845566219,0.27567071,83568.0,83554.0,0.28465707]
[1769845566725,0.27567071,83568.0,83550.0,0.10784]
[1769845570818,0.27567071,83568.0,83546.0,0.74868]
[1769845579930,0.27567071,83568.0,83546.0,0.10784]
[1769845580818,0.28765671,83568.0,83540.0,0.06482787]
[1769845581026,0.28765671,83568.0,83539.0,0.01199]
[1769845581622,0.28765671,83568.0,83539.0,0.09074182]
[1769845581920,0.28865671,83568.0,83539.0,0.09074182]
[1769845582326,0.28673794,83560.0,83533.0,0.3352722]
[1769845582531,0.001,83568.0,83529.0,0.011991]
[1769845582532,0.28673794,83558.0,83529.0,0.011991]
[1769845582830,0.28673794,83549.0,83516.0,0.3114548]
[1769845583017,0.28673794,83547.0,83520.0,0.01234089]
[1769845583222,0.28673794,83545.0,83516.0,0.07827714]
[1769845584132,0.28673794,83543.0,83516.0,0.011993]
[1769845585625,0.20375128,83526.0,83516.0,0.011993]
[1769845586626,0.20375128,83526.0,83515.0,0.06549363]
[1769845586826,0.20375128,83526.0,83513.0,0.10784]
[1769845587430,0.20375128,83526.0,83513.0,0.1721614]
[1769845590730,0.49048922,83526.0,83513.0,0.1721614]
[1769845591530,0.28673794,83525.0,83513.0,0.1721614]
[1769845596728,0.28673794,83525.0,83513.0,0.0643214]
[1769845596935,0.28673794,83525.0,83510.0,0.011994]
[1769845597733,0.28673794,83525.0,83510.0,0.29361879]
[1769845598034,0.28673794,83525.0,83510.0,0.30576661]
[1769845599637,0.20375128,83520.0,83510.0,0.30576661]
[1769845601434,0.20375128,83520.0,83510.0,0.29361879]
[1769845601933,0.48289414,83520.0,83509.0,0.07826671]
[1769845602140,0.27914286,83519.0,83502.0,0.28500104]
[1769845602340,0.27914286,83519.0,83502.0,0.35094014]
[1769845602839,0.27914286,83519.0,83502.0,0.36329719]
[1769845603030,0.27914286,83519.0,83503.0,0.011995]
[1769845604541,0.27914286,83519.0,83503.0,0.29699604]
[1769845605840,0.20375128,83513.0,83503.0,0.29699604]
[1769845606041,0.00013537,83512.0,83503.0,0.29699604]
[1769845606338,0.27927823,83512.0,83502.0,0.07829615]
[1769845606640,0.27927823,83512.0,83496.0,0.119876]
[1769845606841,0.27927823,83512.0,83496.0,0.18538454]
[1769845607932,0.27927823,83512.0,83496.0,0.4826097]
[1769845608141,0.27927823,83512.0,83497.0,0.28500104]
[1769845609830,0.00013537,83512.0,83497.0,0.28500104]
[1769845611452,0.00013537,83512.0,83496.0,0.18538454]
[1769845611453,3.7e-07,83512.0,83508.0,0.28500104]
[1769845611736,0.10788,83536.0,83518.0,0.28500104]
[1769845611929,0.10788,83537.0,83520.0,0.28500104]
[1769845612841,0.38702286,83537.0,83520.0,0.28500104]
[1769845613338,0.10788,83537.0,83520.0,0.28500104]
[1769845615844,0.27914286,83536.0,83520.0,0.28500104]
[1769845616145,0.27914286,83529.0,83516.0,0.06524886]
[1769845616643,0.27914286,83529.0,83509.0,0.011994]
[1769845616943,0.27914286,83529.0,83509.0,0.29699504]
[1769845617140,0.27914286,83529.0,83510.0,0.28500104]
[1769845620646,0.38702286,83529.0,83510.0,0.28500104]
[1769845620943,0.38702286,83529.0,83511.0,0.011994]
[1769845621144,0.38702286,83529.0,83512.0,0.28500104]
[1769845621343,0.10788,83529.0,83514.0,0.28500104]
[1769845621543,0.10788,83529.0,83516.0,0.28500104]
[1769845621842,0.10788,83529.0,83518.0,0.28500104]
[1769845622148,0.31163128,83540.0,83519.0,0.28500104]
[1769845622342,0.20375128,83550.0,83530.0,0.29699204]
[1769845622543,0.38702286,83551.0,83530.0,0.28500104]
[1769845623045,0.48289414,83550.0,83530.0,0.28500104]
[1769845623641,0.27914286,83550.0,83530.0,0.29699204]
[1769845623842,0.20375128,83570.0,83537.0,0.28500104]
[1769845624044,0.27914286,83563.0,83542.0,0.28500104]
[1769845624246,0.27914286,83569.0,83545.0,0.28500104]
[1769845624438,0.27914286,83569.0,83550.0,0.011988]
[1769845624748,0.27914286,83569.0,83538.0,0.10788]
[1769845624749,0.27914286,83569.0,83547.0,0.28500104]
[1769845626144,0.27914286,83569.0,83549.0,0.29698904]
[1769845626446,0.31163128,83570.0,83549.0,0.29698904]
[1769845626648,0.10788,83570.0,83549.0,0.29698904]
[1769845626838,0.31163128,83570.0,83549.0,0.29698904]
[1769845628143,0.27914286,83574.0,83553.0,0.27061226]
[1769845628449,0.20375128,83580.0,83558.0,0.27061226]
[1769845628450,0.27120283,83578.0,83558.0,0.27061226]
[1769845632144,0.27120283,83578.0,83559.0,0.28259926]
[1769845633251,0.10788,83580.0,83563.0,0.27061226]
[1769845636049,0.27120283,83583.0,83565.0,0.27061226]
[1769845636254,0.21573228,83600.0,83567.0,0.27061226]
[1769845636255,0.27120283,83594.0,83567.0,0.27061226]
[1769845636446,0.27120283,83589.0,83568.0,0.37845226]
[1769845638956,0.27120283,83589.0,83569.0,0.27061226]
[1769845640552,0.27120283,83589.0,83570.0,0.27061226]
[1769845640759,0.10784,83599.0,83578.0,0.27061226]
[1769845640953,0.42344,83599.0,83578.0,0.27061226]
[1769845641153,0.42344,83599.0,83580.0,0.27061226]
[1769845641356,0.27120283,83598.0,83580.0,0.27061226]